fUSD/lending_fUSD_20250708
["ID","MTS","AMOUNT","RATE_DAILY","PERIOD"]
[370322615,1751957453914,-460.0,0.00028567,3]
[370322616,1751957453924,-607.79,0.00028567,3]
[370322617,1751957453934,-674.41,0.00028567,3]
[370322618,1751957453945,-497.46,0.00028567,3]
[370322619,1751957453955,-460.0,0.00028567,3]
[370322620,1751957453966,-460.0,0.00028567,3]
[370322621,1751957453975,-460.0,0.00028567,3]
[370322622,1751957453985,-460.0,0.00028567,3]
[370322623,1751957453995,-460.0,0.00028567,3]
[370322624,1751957454005,-569.89,0.00028567,3]
[370322625,1751957454015,-460.0,0.00028567,3]
[370322626,1751957454025,-460.0,0.00028567,3]
[370322627,1751957454035,-460.0,0.00028567,3]
[370322628,1751957454044,-500.0,0.00028567,3]
[370322629,1751957454054,-460.0,0.00028567,3]
[370322630,1751957454063,-388.04131449,0.00028567,3]
[370322631,1751957454072,-609.81,0.00028567,3]
[370322632,1751957454082,-460.0,0.00028567,3]
[370322633,1751957454091,-460.0,0.00028567,3]
[370322634,1751957454101,-460.0,0.00028567,3]
[370322635,1751957454111,-460.0,0.00028567,3]
[370322636,1751957454121,-590.01,0.00028567,3]
[370322637,1751957454130,-460.0,0.00028567,3]
[370322638,1751957454139,-573.71,0.00028567,3]
[370322639,1751957454148,-460.0,0.00028567,3]
[370322640,1751957454158,-460.0,0.00028567,3]
[370322641,1751957454167,-460.46164412,0.00028567,3]
[370322642,1751957454177,-460.0,0.00028567,3]
[370322643,1751957454187,-460.0,0.00028567,3]
[370322644,1751957454197,-554.85,0.00028567,3]
[370322645,1751957454206,-460.0,0.00028567,3]
[370322646,1751957454216,-460.0,0.00028567,3]
[370322647,1751957454226,-460.0,0.00028567,3]
[370322648,1751957454236,-460.0,0.00028567,3]
[370322649,1751957454246,-594.79,0.00028567,3]
[370322650,1751957454255,-460.0,0.00028567,3]
[370322651,1751957454265,-460.0,0.00028567,3]
[370322652,1751957454274,-460.0,0.00028567,3]
[370322653,1751957454284,-460.0,0.00028567,3]
[370322654,1751957454293,-460.0,0.00028567,3]
[370322655,1751957454304,-460.0,0.00028567,3]
[370322656,1751957454314,-626.02,0.00028567,3]
[370322657,1751957454323,-460.0,0.00028567,3]
[370322658,1751957454333,-500.0,0.00028567,3]
[370322659,1751957454343,-679.38,0.00028567,3]
[370322660,1751957454352,-460.0,0.00028567,3]
[370322661,1751957454361,-460.0,0.00028567,3]
[370322662,1751957454371,-460.0,0.00028567,3]
[370322663,1751957454381,-490.95136511,0.00028567,3]
[370322664,1751957454394,-460.0,0.00028567,3]
[370322665,1751957454404,-460.0,0.00028567,3]
[370322666,1751957454414,-460.0,0.00028567,3]
[370322667,1751957454424,-493.69,0.00028567,3]
[370322668,1751957454434,-460.0,0.00028567,3]
[370322669,1751957454444,-460.0,0.00028567,3]
[370322670,1751957454454,-460.0,0.00028567,3]
[370322671,1751957454464,-654.85,0.00028567,3]
[370322672,1751957454474,-460.0,0.00028567,3]
[370322673,1751957454484,-460.0,0.00028567,3]
[370322674,1751957454493,-460.0,0.00028567,3]
[370322675,1751957454503,-460.0,0.00028567,3]
[370322676,1751957454513,-460.0,0.00028567,3]
[370322677,1751957454523,-460.0,0.00028567,3]
[370322678,1751957454533,-460.0,0.00028567,3]
[370322679,1751957454543,-716.74,0.00028567,3]
[370322680,1751957454553,-460.0,0.00028567,3]
[370322681,1751957454562,-970.88,0.00028567,3]
[370322682,1751957454572,-492.58459299,0.00028567,3]
[370322683,1751957454581,-460.0,0.00028567,3]
[370322684,1751957454591,-460.0,0.00028567,3]
[370322685,1751957454601,-460.0,0.00028567,3]
[370322686,1751957454611,-460.0,0.00028567,3]
[370322687,1751957454620,-529.98,0.00028567,3]
[370322688,1751957454630,-1640.17,0.00028567,3]
[370322689,1751957454640,-460.0,0.00028567,3]
[370322690,1751957454649,-460.0,0.00028567,3]
[370322691,1751957454659,-460.0,0.00028567,3]
[370322692,1751957454669,-460.0,0.00028567,3]
[370322693,1751957454678,-460.0,0.00028567,3]
[370322694,1751957454688,-1380.0,0.00028567,3]
[370322695,1751957454698,-460.0,0.00028567,3]
[370322696,1751957454707,-460.0,0.00028567,3]
[370322697,1751957454717,-460.0,0.00028567,3]
[370322698,1751957454727,-460.0,0.00028567,3]
[370322699,1751957454736,-460.0,0.00028567,3]
[370322700,1751957454746,-460.0,0.00028567,3]
[370322701,1751957454755,-936.02,0.00028567,3]
[370322702,1751957454765,-460.0,0.00028567,3]
[370322703,1751957454775,-460.0,0.00028567,3]
[370322704,1751957454784,-460.0,0.00028567,3]
[370322705,1751957454793,-460.0,0.00028567,3]
[370322706,1751957454803,-460.0,0.00028567,3]
[370322707,1751957454812,-460.0,0.00028567,3]
[370322708,1751957454822,-1940.43,0.00028567,3]
[370322709,1751957454832,-701.43,0.00028567,3]
[370322710,1751957454842,-460.0,0.00028567,3]
[370322711,1751957454852,-460.0,0.00028567,3]
[370322712,1751957454861,-460.0,0.00028567,3]
[370322713,1751957454871,-460.0,0.00028567,3]
[370322714,1751957454881,-913.46,0.00028567,3]
[370322715,1751957454890,-460.0,0.00028567,3]
[370322716,1751957454900,-460.0,0.00028567,3]
[370322717,1751957454909,-998.35,0.00028567,3]
[370322718,1751957454919,-460.0,0.00028567,3]
[370322719,1751957454929,-460.0,0.00028567,3]
[370322720,1751957454938,-653.75,0.00028567,3]
[370322721,1751957454948,-460.0,0.00028567,3]
[370322722,1751957454957,-460.0,0.00028567,3]
[370322723,1751957454967,-460.0,0.00028567,3]
[370322724,1751957454976,-460.0,0.00028567,3]
[370322725,1751957454987,-660.39,0.00028567,3]
[370322726,1751957454996,-460.0,0.00028567,3]
[370322727,1751957455006,-460.0,0.00028567,3]
[370322728,1751957455015,-521.62,0.00028567,3]
[370322729,1751957455025,-460.0,0.00028567,3]
[370322730,1751957455035,-1299.33,0.00028567,3]
[370322731,1751957455045,-696.29,0.00028567,3]
[370322732,1751957455055,-460.0,0.00028567,3]
[370322733,1751957455064,-460.0,0.00028567,3]
[370322734,1751957455074,-460.0,0.00028567,3]
[370322735,1751957455085,-460.0,0.00028567,3]
[370322736,1751957455094,-1499.73,0.00028567,3]
[370322737,1751957455104,-460.0,0.00028567,3]
[370322738,1751957455114,-460.0,0.00028567,3]
[370322739,1751957455124,-804.52,0.00028567,3]
[370322740,1751957455134,-460.0,0.00028567,3]
[370322741,1751957455144,-460.0,0.00028567,3]
[370322742,1751957455155,-460.0,0.00028567,3]
[370322743,1751957455165,-555.83,0.00028567,3]
[370322744,1751957455174,-557.9,0.00028567,3]
[370322745,1751957455184,-460.0,0.00028567,3]
[370322746,1751957455194,-500.19,0.00028567,3]
[370322747,1751957455205,-460.0,0.00028567,3]
[370322748,1751957455215,-460.0,0.00028567,3]
[370322749,1751957455224,-460.0,0.00028567,3]
[370322750,1751957455234,-460.0,0.00028567,3]
[370322751,1751957455244,-560.23,0.00028567,3]
[370322752,1751957455254,-500.0,0.00028567,3]
[370322753,1751957455264,-460.0,0.00028567,3]
[370322754,1751957455274,-460.0,0.00028567,3]
[370322755,1751957455284,-460.0,0.00028567,3]
[370322756,1751957455293,-460.0,0.00028567,3]
[370322757,1751957455303,-485.37,0.00028567,3]
[370322758,1751957455313,-490.69257054,0.00028567,3]
[370322759,1751957455323,-498.16610828,0.00028567,3]
[370322760,1751957455333,-460.0,0.00028567,3]
[370322761,1751957455342,-300.0,0.00028567,3]
[370322762,1751957455352,-460.0,0.00028567,3]
[370322763,1751957455362,-460.0,0.00028567,3]
[370322764,1751957455371,-460.0,0.00028567,3]
[370322765,1751957455381,-460.0,0.00028567,3]
[370322766,1751957455395,-460.0,0.00028567,3]
[370322767,1751957455405,-460.0,0.00028567,3]
[370322768,1751957455415,-460.0,0.00028567,3]
[370322769,1751957455425,-460.0,0.00028567,3]
[370322770,1751957455436,-460.0,0.00028567,3]
[370322771,1751957455446,-479.45,0.00028567,3]
[370322772,1751957455456,-506.65481196,0.00028567,3]
[370322773,1751957455466,-500.0,0.00028567,3]
[370322774,1751957455476,-460.0,0.00028567,3]
[370322775,1751957455488,-521.9,0.00028567,3]
[370322776,1751957455497,-460.0,0.00028567,3]
[370322777,1751957455507,-499.92,0.00028567,3]
[370322778,1751957455517,-460.0,0.00028567,3]
[370322779,1751957455526,-1479.25,0.00028567,3]
[370322780,1751957455536,-460.0,0.00028567,3]
[370322781,1751957455546,-460.0,0.00028567,3]
[370322782,1751957455557,-536.98,0.00028567,3]
[370322783,1751957455567,-460.0,0.00028567,3]
[370322784,1751957455576,-460.0,0.00028567,3]
[370322785,1751957455586,-460.0,0.00028567,3]
[370322786,1751957455596,-460.0,0.00028567,3]
[370322787,1751957455606,-460.0,0.00028567,3]
[370322788,1751957455616,-460.0,0.00028567,3]
[370322789,1751957455837,-460.0,0.00028567,3]
[370322790,1751957455877,-878.73,0.00028567,3]
[370322791,1751957455887,-574.87,0.00028567,3]
[370322792,1751957455897,-1197.49,0.00028567,3]
[370322793,1751957455906,-460.0,0.00028567,3]
[370322794,1751957455916,-460.0,0.00028567,3]
[370322795,1751957455925,-460.0,0.00028567,3]
[370322796,1751957455935,-460.0,0.00028567,3]
[370322797,1751957455945,-460.0,0.00028567,3]
[370322798,1751957455955,-693.09,0.00028567,3]
[370322799,1751957455965,-460.0,0.00028567,3]
[370322800,1751957455974,-486.48,0.00028567,3]
[370322801,1751957455984,-460.0,0.00028567,3]
[370322802,1751957455994,-460.0,0.00028567,3]
[370322803,1751957456003,-500.0,0.0002857,3]
[370322804,1751957456013,-500.0,0.0002857,3]
[370322805,1751957456022,-349.47181242,0.0002857,3]
[370322806,1751957456032,-1423.05,0.0002857,3]
[370322807,1751957456042,-1423.05,0.0002857,3]
[370322808,1751957456051,-1423.05,0.0002857,3]
[370322809,1751957456062,-1423.05,0.0002857,3]
[370322810,1751957456071,-1423.05,0.0002857,3]
[370322811,1751957456080,-1423.05,0.0002857,3]
[370322812,1751957456090,-1423.05,0.0002857,3]
[370322813,1751957456099,-1423.05,0.0002857,3]
[370322814,1751957456109,-1423.05,0.0002857,3]
[370322815,1751957456118,-1423.05,0.0002857,3]
[370322816,1751957456128,-1423.05,0.0002857,3]
[370322817,1751957456137,-1423.05,0.0002857,3]
[370322818,1751957456147,-1423.05,0.0002857,3]
[370322819,1751957456157,-500.0,0.00028573,5]
[370322820,1751957456167,-624.80603821,0.00028573,5]
[370322821,1751957456176,-500.0,0.00028573,5]
[370322822,1751957456186,-500.0,0.00028573,5]
[370322823,1751957456195,-500.0,0.00028573,5]
[370322824,1751957456204,-500.0,0.00028573,5]
[370322825,1751957456213,-500.0,0.00028573,5]
[370322826,1751957456223,-500.0,0.00028573,5]
[370322827,1751957456232,-500.0,0.00028573,5]
[370322828,1751957456242,-500.0,0.00028573,5]
[370322829,1751957456251,-501.70191442,0.00028573,5]
[370322830,1751957456260,-500.0,0.00028573,5]
[370322831,1751957456270,-341.62889077,0.00028573,5]
[370322832,1751957456279,-500.43102768,0.00028573,5]
[370322833,1751957456289,-500.0,0.00028573,5]
[370322834,1751957456298,-500.0,0.00028573,5]
[370322835,1751957456308,-500.0,0.00028573,5]
[370322836,1751957456318,-500.26532226,0.00028573,5]
[370322837,1751957456327,-500.0,0.00028573,2]
[370322838,1751957456337,-506.76804365,0.00028573,5]
[370322839,1751957456346,-500.0,0.00028573,5]
[370322840,1751957456356,-500.39999617,0.00028573,5]
[370322841,1751957456365,-500.0,0.00028573,5]
[370322842,1751957456375,-398.0,0.00028575,2]
[370322843,1751957456385,-2996.0,0.00028576,5]
[370322844,1751957456398,-666.0,0.00028579,10]
[370322845,1751957456407,-226.19643133,0.00028586,2]
[370322846,1751957456417,-719.85,0.00028587,3]
[370322847,1751957456427,-500.0,0.00028588,3]
[370322848,1751957456437,-460.0,0.00028588,3]
[370322849,1751957456447,-460.0,0.00028588,3]
[370322850,1751957456457,-460.0,0.00028588,3]
[370322851,1751957456466,-460.0,0.00028588,3]
[370322852,1751957456476,-460.0,0.00028588,3]
[370322853,1751957456487,-460.0,0.00028588,3]
[370322854,1751957456496,-460.0,0.00028588,3]
[370322855,1751957456506,-460.0,0.00028588,3]
[370322856,1751957456516,-460.0,0.00028588,3]
[370322857,1751957456526,-460.0,0.00028588,3]
[370322858,1751957456536,-460.0,0.00028588,3]
[370322859,1751957456546,-460.0,0.00028588,3]
[370322860,1751957456556,-460.0,0.00028588,3]
[370322861,1751957456566,-460.0,0.00028588,3]
[370322862,1751957456575,-460.0,0.00028588,3]
[370322863,1751957456585,-531.32,0.00028588,3]
[370322864,1751957456595,-500.0,0.00028588,3]
[370322865,1751957456604,-500.0,0.00028588,3]
[370322866,1751957456614,-1810.3,0.00028588,3]
[370322867,1751957456623,-1305.51,0.00028588,3]
[370322868,1751957456633,-3739.85,0.00028588,3]
[370322869,1751957456643,-460.0,0.00028588,3]
[370322870,1751957456653,-460.0,0.00028588,3]
[370322871,1751957456663,-697.14,0.00028588,3]
[370322872,1751957456672,-1583.81,0.00028588,3]
[370322873,1751957456682,-561.22,0.00028588,3]
[370322874,1751957456692,-1623.61,0.00028588,3]
[370322875,1751957456702,-1565.7,0.00028588,3]
[370322876,1751957456711,-646.34,0.00028588,3]
[370322877,1751957456721,-2043.53,0.00028588,3]
[370322878,1751957456731,-753.16,0.00028588,3]
[370322879,1751957456740,-2600.56,0.00028588,3]
[370322880,1751957456751,-460.0,0.00028588,3]
[370322881,1751957456760,-757.87,0.00028588,3]
[370322882,1751957456769,-1516.89,0.00028588,3]
[370322883,1751957456779,-1173.13,0.00028588,3]
[370322884,1751957456788,-460.0,0.00028588,3]
[370322885,1751957456798,-5020.73,0.00028588,3]
[370322886,1751957456807,-1909.44,0.00028588,3]
[370322887,1751957456816,-1322.91,0.00028588,3]
[370322888,1751957456826,-1574.16,0.00028588,3]
[370322889,1751957456835,-13628.2,0.00028588,3]
[370322890,1751957456844,-4123.53,0.00028588,3]
[370322891,1751957456853,-1420.18,0.00028588,3]
[370322892,1751957456863,-5071.12,0.00028588,3]
[370322893,1751957456872,-2171.4,0.00028588,3]
[370322894,1751957456882,-1235.29,0.00028588,3]
[370322895,1751957456892,-820.76,0.00028588,3]
[370322896,1751957456901,-2160.37,0.00028588,3]
[370322897,1751957456911,-4713.49,0.00028588,3]
[370322898,1751957456920,-1019.03,0.00028588,3]
[370322899,1751957456930,-151.0,0.00028588,7]
[370322900,1751957456939,-500.0,0.00028588,3]
[370322901,1751957456949,-460.0,0.00028588,3]
[370322902,1751957456959,-2200.17,0.00028588,3]
[370322903,1751957456969,-792.56,0.00028588,3]
[370322904,1751957456978,-460.0,0.00028588,3]
[370322905,1751957456988,-1294.98,0.00028588,3]
[370322906,1751957456997,-1894.11,0.00028588,3]
[370322907,1751957457006,-460.0,0.00028588,3]
[370322908,1751957457016,-915.49,0.00028588,3]
[370322909,1751957457026,-300.0,0.00028591,10]
[370322910,1751957457036,-666.0,0.00028591,10]
[370322911,1751957457046,-300.0,0.00028591,10]
[370322912,1751957457056,-300.0,0.00028591,10]
[370322913,1751957457066,-300.0,0.00028591,10]
[370322914,1751957457075,-300.0,0.00028591,10]
[370322915,1751957457084,-666.0,0.00028591,10]
[370322916,1751957457094,-507.73260734,0.00028591,3]
[370322917,1751957457104,-500.0,0.00028591,3]
[370322918,1751957457114,-500.0,0.00028591,3]
[370322919,1751957457124,-500.0,0.00028591,3]
[370322920,1751957457135,-500.0,0.00028591,3]
[370322921,1751957457145,-500.0,0.00028591,3]
[370322922,1751957457155,-500.0,0.00028591,3]
[370322923,1751957457165,-500.0,0.00028591,3]
[370322924,1751957457175,-162.00410779,0.00028591,3]
[370322925,1751957457186,-3576.2323997,0.00028591,2]
[370322926,1751957457196,-1683.1038312,0.00028591,2]
[370322927,1751957457207,-68308.0866117,0.00028591,2]
[370322928,1751957457216,-2600.56,0.00028591,3]
[370322929,1751957457225,-2600.56,0.00028591,3]
[370322930,1751957457236,-2600.56,0.00028591,3]
[370322931,1751957457245,-711.5438908,0.00028591,2]
[370322932,1751957457255,-2600.56,0.00028591,3]
[370322933,1751957457264,-2600.56,0.00028591,3]
[370322934,1751957457274,-2600.56,0.00028591,3]
[370322935,1751957457284,-2600.56,0.00028591,3]
[370322936,1751957457293,-2600.56,0.00028591,3]
[370322937,1751957457303,-2600.56,0.00028591,3]
[370322938,1751957457313,-2600.56,0.00028591,3]
[370322939,1751957457322,-2600.56,0.00028591,3]
[370322940,1751957457331,-2600.56,0.00028591,3]
[370322941,1751957457340,-2600.56,0.00028591,3]
[370322942,1751957457350,-2600.56,0.00028591,3]
[370322943,1751957457360,-2035.9125765,0.00028591,2]
[370322944,1751957457369,-16936.3207191,0.00028591,2]
[370322945,1751957457379,-6567.5555734,0.00028591,2]
[370322946,1751957457392,-2388.7213217,0.00028591,2]
[370322947,1751957457403,-437.99760873,0.00028591,3]
[370322948,1751957457412,-1046.1956386,0.00028591,2]
[370322949,1751957457423,-306.33524349,0.00028595,2]
[370322950,1751957457435,-7000.0,0.00028595,2]
[370322951,1751957457445,-719.85,0.00028596,3]
[370322952,1751957457455,-719.85,0.00028596,3]
[370322953,1751957457467,-719.85,0.00028596,3]
[370322954,1751957457477,-719.85,0.00028596,3]
[370322955,1751957457487,-719.93149885,0.00028596,3]
[370322956,1751957457496,-300.0,0.00028597,10]
[370322957,1751957457506,-492.97313301,0.00028597,3]
[370322958,1751957457516,-567.27121445,0.00028597,3]
[370322959,1751957457527,-2000.0,0.00028597,2]
[370322960,1751957457536,-200.0,0.00028597,2]
[370322961,1751957457546,-775.41,0.00028597,3]
[370322962,1751957457556,-1254.08,0.00028597,3]
[370322963,1751957457565,-460.0,0.00028597,3]
[370322964,1751957457575,-960.37,0.00028597,3]
[370322965,1751957457585,-711.97,0.00028597,3]
[370322966,1751957457594,-2337.61,0.00028597,3]
[370322967,1751957457604,-2600.56,0.00028597,3]
[370322968,1751957457614,-460.0,0.00028598,3]
[370322969,1751957457623,-460.0,0.00028598,3]
[370322970,1751957457633,-460.0,0.00028598,3]
[370322971,1751957457642,-460.0,0.00028598,3]
[370322972,1751957457651,-460.0,0.00028598,3]
[370322973,1751957457661,-460.0,0.00028598,3]
[370322974,1751957457670,-712.28,0.00028598,3]
[370322975,1751957457680,-460.0,0.00028598,3]
[370322976,1751957457689,-460.0,0.00028598,3]
[370322977,1751957457699,-460.0,0.00028598,3]
[370322978,1751957457709,-460.0,0.00028598,3]
[370322979,1751957457719,-460.0,0.00028598,3]
[370322980,1751957457729,-460.0,0.00028598,3]
[370322981,1751957457738,-460.0,0.00028598,3]
[370322982,1751957457748,-460.0,0.00028598,3]
[370322983,1751957457757,-739.44,0.00028598,3]
[370322984,1751957457767,-500.0,0.00028598,2]
[370322985,1751957457777,-505.23461978,0.00028598,3]
[370322986,1751957457786,-500.0,0.00028598,3]
[370322987,1751957457795,-920.0,0.00028598,2]
[370322988,1751957457804,-500.0,0.00028598,3]
[370322989,1751957457814,-500.0,0.00028598,3]
[370322990,1751957457823,-500.0,0.00028598,3]
[370322991,1751957457834,-252249.9411292,0.00028598,2]
[370322992,1751957457843,-20308.7261784,0.00028598,2]
[370322993,1751957457854,-500.0,0.00028598,3]
[370322994,1751957457865,-607.16207522,0.00028598,3]
[370322995,1751957457875,-913.46,0.00028598,3]
[370322996,1751957457887,-653.75,0.00028598,3]
[370322997,1751957457897,-500.0,0.00028598,3]
[370322998,1751957457907,-151.0,0.00028598,7]
[370322999,1751957457917,-500.0,0.00028598,3]
[370323000,1751957457927,-288.354047,0.00028598,7]
[370323001,1751957457936,-151.0,0.00028598,7]
[370323002,1751957457946,-151.0,0.00028598,7]
[370323003,1751957457956,-151.0,0.00028598,7]
[370323004,1751957457967,-1507.64,0.00028599,3]
[370323005,1751957457976,-1409.52,0.00028599,3]
[370323006,1751957457986,-489.35,0.00028599,3]
[370323007,1751957457996,-937.97,0.00028599,3]
[370323008,1751957458006,-792.63,0.00028599,3]
[370323009,1751957458015,-477.32,0.00028599,3]
[370323010,1751957458025,-460.0,0.00028599,3]
[370323011,1751957458034,-1039.52,0.00028599,3]
[370323012,1751957458043,-1082.72,0.00028599,3]
[370323013,1751957458053,-883.24,0.00028599,3]
[370323014,1751957458063,-500.0,0.00028599,3]
[370323015,1751957458072,-875.68,0.00028599,3]
[370323016,1751957458082,-460.0,0.00028599,3]
[370323017,1751957458092,-460.0,0.00028599,3]
[370323018,1751957458101,-460.0,0.00028599,3]
[370323019,1751957458111,-460.0,0.00028599,3]
[370323020,1751957458120,-2200.0,0.000286,10]
[370323021,1751957458130,-516.1638,0.00028611,2]
[370323022,1751957458139,-474.6746163,0.00028619,2]
[370323023,1751957458148,-458.0,0.00028622,2]
[370323024,1751957458158,-859.0,0.0002863,2]
[370323025,1751957458249,-300.0,0.00028636,10]
[370323026,1751957458259,-300.0,0.00028636,10]
[370323027,1751957458269,-300.0,0.00028636,10]
[370323028,1751957458279,-2600.56,0.00028636,3]
[370323029,1751957458288,-2600.56,0.00028636,3]
[370323030,1751957458298,-2600.56,0.00028636,3]
[370323031,1751957458307,-2600.56,0.00028636,3]
[370323032,1751957458316,-2600.56,0.00028636,3]
[370323033,1751957458325,-2600.56,0.00028636,3]
[370323034,1751957458334,-2600.73794788,0.00028636,3]
[370323035,1751957458343,-150.92050298,0.0002864,2]
[370323036,1751957458353,-672.36793666,0.00028646,10]
[370323037,1751957458362,-500.0,0.00028655,2]
[370323038,1751957458371,-150.27248376,0.00028655,2]
[370323039,1751957458380,-454.0,0.00028655,2]
[370323040,1751957458394,-431.0,0.00028655,2]
[370323041,1751957458403,-150.0,0.00028655,2]
[370323042,1751957458414,-500.0,0.00028655,2]
[370323043,1751957458424,-150.0,0.00028655,2]
[370323044,1751957458433,-150.0,0.00028655,2]
[370323045,1751957458443,-150.57988292,0.00028655,2]
[370323046,1751957458453,-150.0,0.00028655,2]
[370323047,1751957458462,-500.0,0.00028655,2]
[370323048,1751957458471,-500.0,0.00028655,2]
[370323049,1751957458480,-500.0,0.00028655,2]
[370323050,1751957458490,-500.0,0.00028655,2]
[370323051,1751957458499,-150.0,0.00028655,2]
[370323052,1751957458508,-150.0,0.00028655,2]
[370323053,1751957458518,-150.0,0.00028655,2]
[370323054,1751957458527,-500.0,0.00028655,2]
[370323055,1751957458536,-735.0,0.00028655,2]
[370323056,1751957458545,-150.0,0.00028655,2]
[370323057,1751957458555,-150.0,0.00028655,2]
[370323058,1751957458564,-500.0,0.00028655,2]
[370323059,1751957458574,-150.0,0.00028655,2]
[370323060,1751957458584,-676.0,0.00028655,2]
[370323061,1751957458594,-500.0,0.00028655,2]
[370323062,1751957458604,-150.0,0.00028655,2]
[370323063,1751957458614,-500.0,0.00028655,2]
[370323064,1751957458623,-1810.0,0.00028655,2]
[370323065,1751957458633,-500.0,0.00028655,2]
[370323066,1751957458642,-150.0,0.00028655,2]
[370323067,1751957458652,-500.0,0.00028655,2]
[370323068,1751957458662,-489.0,0.00028655,2]
[370323069,1751957458672,-150.0,0.00028655,2]
[370323070,1751957458681,-500.0,0.00028655,2]
[370323071,1751957458691,-150.89782949,0.00028655,2]
[370323072,1751957458700,-150.0,0.00028655,2]
[370323073,1751957458710,-1000.0,0.00028655,2]
[370323074,1751957458719,-739.44,0.00028656,3]
[370323075,1751957458729,-739.44,0.00028656,3]
[370323076,1751957458738,-739.44,0.00028656,3]
[370323077,1751957458747,-739.44,0.00028656,3]
[370323078,1751957458757,-739.44,0.00028656,3]
[370323079,1751957458766,-739.44,0.00028656,3]
[370323080,1751957458775,-739.44,0.00028656,3]
[370323081,1751957458784,-739.44,0.00028656,3]
[370323082,1751957458793,-739.44,0.00028656,3]
[370323083,1751957458802,-739.44,0.00028656,3]
[370323084,1751957458812,-739.44,0.00028656,3]
[370323085,1751957458821,-739.44,0.00028656,3]
[370323086,1751957458830,-500.0,0.00028656,2]
[370323087,1751957458839,-264.74386774,0.00028656,2]
[370323088,1751957458849,-500.0,0.00028656,3]
[370323089,1751957458858,-500.0,0.00028656,3]
[370323090,1751957458867,-500.0,0.00028656,3]
[370323091,1751957458876,-605.42533259,0.00028656,3]
[370323092,1751957458885,-920.0,0.00028656,2]
[370323093,1751957458895,-920.0,0.00028656,2]
[370323094,1751957458904,-920.0,0.00028656,2]
[370323095,1751957458913,-920.0,0.00028656,2]
[370323096,1751957458922,-920.0,0.00028656,2]
[370323097,1751957458930,-920.0,0.00028656,2]
[370323098,1751957458940,-920.0,0.00028656,2]
[370323099,1751957458948,-920.0,0.00028656,2]
[370323100,1751957458958,-920.0,0.00028656,2]
[370323101,1751957458967,-920.0,0.00028656,2]
[370323102,1751957458977,-920.0,0.00028656,2]
[370323103,1751957458986,-920.0,0.00028656,2]
[370323104,1751957458995,-500.0,0.00028656,3]
[370323105,1751957459005,-500.0,0.00028656,3]
[370323106,1751957459015,-500.0,0.00028656,3]
[370323107,1751957459025,-500.0,0.00028656,3]
[370323108,1751957459034,-500.0,0.00028656,3]
[370323109,1751957459045,-500.0,0.00028656,3]
[370323110,1751957459054,-500.0,0.00028656,3]
[370323111,1751957459066,-500.0,0.00028656,3]
[370323112,1751957459075,-500.0,0.00028656,3]
[370323113,1751957459085,-500.0,0.00028656,3]
[370323114,1751957459095,-500.0,0.00028656,3]